[Event "Oslo Chess Festival 2018"]
[Site "Oslo"]
[Date "2018.09.30"]
[Round "1"]
[White "Svanholm, Borge Waaktaar"]
[Black "Sriram, Jha"]
[Result "1/2-1/2"]
[ECO "A33"]
[WhiteElo "1869"]
[BlackElo "2394"]
[Annotator "ChessBase"]
[PlyCount "122"]
[EventDate "2018.09.30"]
[EventCountry "NOR"]
[SourceTitle "playchess.com"]
[Source "ChessBase"]
[SourceQuality "1"]
[TimeControl "90/30+30:0"]

1. c4 {[%emt 0:00:00]} c5 {[%emt 0:00:00]} 2. Nf3 {[%emt 0:00:00]} Nc6 {[%emt 0:00:00]} 3. d4 {[%emt 0:00:00]} cxd4 {[%emt 0:00:00]} 4. Nxd4 {[%emt 0:00:00]} Nf6 {[%emt 0:00:00]} 5. Nc3 {[%emt 0:00:00]} e6 {[%emt 0:00:00]} 6. a3 {[%emt 0:00:00]} Bc5 {[%emt 0:00:00]} 7. Nb3 {[%emt 0:00:00]} Be7 {[%emt 0:00:00]} 8. e4 {[%emt 0:00:00]} O-O {[%emt 0:00:00]} 9. Be2 {[%emt 0:00:00]} b6 {[%emt 0:00:00]} 10. O-O {[%emt 0:00:00]} Bb7 {[%emt 0:00:00]} 11. Be3 {[%emt 0:00:00]} Rc8 {[%emt 0:00:00]} 12. f4 {[%emt 0:00:00]} d6 {[%emt 0:00:00]} 13. Rc1 {[%emt 0:00:00]} Nb8 {[%emt 0:00:00]} 14. Bd3 {[%emt 0:00:00]} Nbd7 {[%emt 0:00:00]} 15. Qe2 {[%emt 0:00:00]} Qc7 {[%emt 0:00:00]} 16. Rfd1 {[%emt 0:00:00]} Qb8 {[%emt 0:00:00]} 17. g4 {[%emt 0:00:00]} Qa8 {[%emt 0:00:00]} 18. Bf2 {[%emt 0:00:00]} g6 {[%emt 0:00:00]} 19. g5 {[%emt 0:00:00]} Nh5 {[%emt 0:00:00]} 20. Qe3 {[%emt 0:00:00]} e5 {[%emt 0:00:00]} 21. f5 {[%emt 0:00:00]} f6 {[%emt 0:00:00]} 22. fxg6 {[%emt 0:00:00]} hxg6 {[%emt 0:00:00]} 23. gxf6 {[%emt 0:00:00]} Ndxf6 {[%emt 0:00:00]} 24. Nd5 {[%emt 0:00:00]} Bxd5 {[%emt 0:00:00]} 25. exd5 {[%emt 0:00:00]} Ng4 {[%emt 0:00:00]} 26. Qe4 {[%emt 0:00:18]} Nf4 {[%emt 0:04:41]} 27. Bg3 {[%emt 0:01:40]} Nf6 {[%emt 0:00:15]} 28. Qe3 {[%emt 0:01:53]} N6h5 {[%emt 0:03:59]} 29. Rf1 {[%emt 0:03:25]} Qb7 {[%emt 0:00:04]} 30. Bxf4 {[%emt 0:01:47]} Nxf4 {[%emt 0:00:11]} 31. Qe4 {[%emt 0:02:03]} Bg5 {[%emt 0:00:41]} 32. Rc2 {[%emt 0:00:51]} Qg7 {[%emt 0:00:43]} 33. Kh1 {[%emt 0:01:32]} Rf6 {[%emt 0:00:21]} 34. Rcf2 {[%emt 0:00:42]} Rcf8 {[%emt 0:00:14]} 35. Nc1 {[%emt 0:00:49]} Kh7 {[%emt 0:02:58]} 36. Bc2 {[%emt 0:01:08]} Nh3 {[%emt 0:00:32]} 37. Rxf6 {[%emt 0:00:47]} Rxf6 {[%emt 0:00:02]} 38. Qg2 {[%emt 0:01:12]} Rxf1+ {[%emt 0:02:43]} 39. Qxf1 {[%emt 0:00:02]} Qd7 {[%emt 0:01:17]} 40. Ne2 {[%emt 0:01:38]} Nf4 {[%emt 0:01:06]} 41. Nxf4 {[%emt 0:00:00]} exf4 {[%emt 0:00:00]} 42. Qf3 {[%emt 0:00:00]} Kg7 {[%emt 0:00:00]} 43. Qe4 {[%emt 0:00:00]} Qf7 {[%emt 0:00:00]} 44. Kg2 {[%emt 0:00:00]} Qf6 {[%emt 0:00:00]} 45. Kf3 {[%emt 0:00:00]} Kf7 {[%emt 0:00:00]} 46. Bd3 {[%emt 0:00:00]} Bh6 {[%emt 0:00:00]} 47. h4 {[%emt 0:00:00]} Bg7 {[%emt 0:00:00]} 48. b3 {[%emt 0:00:00]} Bh6 {[%emt 0:00:00]} 49. a4 {[%emt 0:00:56]} a5 {[%emt 0:00:00]} 50. Kg4 {[%emt 0:01:15]} Kg7 {[%emt 0:00:00]} 51. Kf3 {[%emt 0:00:37]} Kf7 {[%emt 0:00:00]} 52. Kg4 {[%emt 0:01:20]} g5 {[%emt 0:02:49]} 53. h5 {[%emt 0:01:16]} Bg7 {[%emt 0:00:36]} 54. Be2 {[%emt 0:01:05]} Kf8 {[%emt 0:01:03]} 55. Qf5 {[%emt 0:00:34]} Kg8 {[%emt 0:01:22]} 56. Qxg5 {[%emt 0:00:42]} Qb2 {[%emt 0:00:25]} 57. Bf3 {[%emt 0:00:31]} Qh2 {[%emt 0:01:21]} 58. Kf5 {[%emt 0:00:30]} Kh8 {[%emt 0:00:52]} 59. Bg4 {[%emt 0:00:52]} Qb2 {[%emt 0:00:46]} 60. Ke6 {[%emt 0:00:25]} Qxb3 {[%emt 0:00:48]} 61. h6 {[%emt 0:00:26]} Bd4 {[%emt 0:00:37] Ke5 [%emt 00:00:42]} 1/2-1/2

[Event "Oslo Chess Festival 2018"]
[Site "Oslo"]
[Date "2018.10.02"]
[Round "3"]
[White "Ronneland, Daniel"]
[Black "Mikalsen, Erlend"]
[Result "0-1"]
[ECO "B35"]
[WhiteElo "2208"]
[BlackElo "2332"]
[Annotator "NA"]
[PlyCount "108"]
[EventDate "2018.09.30"]
[EventCountry "NOR"]
[SourceTitle "playchess.com"]
[Source "ChessBase"]
[SourceQuality "1"]
[TimeControl "90/30+30:0"]

{[%evp 8,75,8,0,40,8,18,14,18,12,8,32767,32767,32767,32767,37,66,13,20,0,16,14,15,0,7,-6,97,66,76,73,58,-67,59,10,61,54,81,11,18,0,6,6,4,4,209,8,26,0,20,0,0,-120,-116,-125,-129,-138,-142,-138,-139,-156,-142,-129,-142,-133,-25,-119,-104,-191,-170,-183]} 1. e4 {[%emt 0:00:00]} c5 {[%emt 0:00:00]} 2. Nf3 {[%emt 0:00:00]} Nc6 {[%emt 0:00:00]} 3. d4 {[%emt 0:00:00]} cxd4 {[%emt 0:00:00]} 4. Nxd4 {[%emt 0:00:00]} g6 {[%emt 0:00:00]} 5. Be3 {[%emt 0:00:00]} Bg7 {[%emt 0:00:00]} 6. Nc3 {[%emt 0:00:00]} Nf6 {[%emt 0:00:00]} 7. Bc4 {[%emt 0:00:00]} O-O {[%emt 0:00:00]} 8. Bb3 {[%emt 0:00:00]} a5 {[%emt 0:00:00]} 9. O-O {[%emt 0:00:00]} a4 {[%emt 0:00:00]} 10. Nxa4 {[%emt 0:00:00]} Nxe4 {[%emt 0:00:00]} 11. Nb5 {[%emt 0:00:00]} d5 {[%emt 0:00:00] LiveBook: 56 Partien B35: Sicilian: Accelerated Dragon with 5 Nc3: main line} (11... Ra6 12. f3 Nf6 13. c4 d6 14. Nac3 Na5 15. Rc1 Be6 16. Ne2 d5 17. c5 Nxb3 18. axb3 Bd7 19. Nbc3 {1-0 (36) Almasi,Z (2689)-Istratescu,A (2602) Bastia 2015}) 12. Nb6 {[%emt 0:00:00]} Ra5 {[%emt 0:00:00]} 13. Bxd5 {[%emt 0:00:00]} Rxb5 {[%emt 0:00:00]} 14. Bxe4 {[%emt 0:00:00]} Rxb2 {[%emt 0:00:00]} 15. Qxd8 {[%emt 0:00:00]} Rxd8 {[%emt 0:00:00]} 16. Rad1 {[%emt 0:00:00]} Rxd1 $146 {[%emt 0:00:00]} (16... Rf8 $11) ({Predecessor:} 16... Re8 17. Nxc8 Rxc8 18. Rd7 Bf6 19. Bh6 Bg7 20. Be3 Bf6 21. Bh6 Bg7 {½-½ (21) Hammarstrom,U (2196)-Wedberg,T (2458) Vasteras 2017}) 17. Rxd1 {[%emt 0:00:00]} Be6 $1 {[%emt 0:00:00]} 18. Bxc6 $1 {[%emt 0:00:00]} bxc6 {[%emt 0:00:00]} 19. Rd8+ {[%emt 0:00:00]} Bf8 {[%emt 0:00:00]} 20. Kf1 {[%emt 0:00:00]} (20. h4 $5 {[%cal Re3h6]} Rb1+ 21. Kh2 $14) 20... h6 {[%emt 0:00:00]} ({And not} 20... Bxa2 21. Bh6 Bc4+ 22. Nxc4 Rb1+ 23. Ke2 Rb8 24. Rxb8 Kh8 25. Rxf8#) 21. a4 {[%emt 0:00:00]} f5 {[%emt 0:00:00]} 22. a5 {[%emt 0:00:00]} (22. Bxh6 $16 Rxb6 23. Rxf8+ Kh7 24. Bg5) 22... Kf7 {[%emt 0:00:00]} 23. a6 {[%emt 0:00:00]} Ra2 {[%emt 0:00:00]} 24. Ra8 {[%emt 0:00:00]} Bg7 {[%emt 0:00:00]} 25. a7 {[%emt 0:00:00]} Be5 $2 {[%emt 0:00:00]} (25... f4 $11 {and Black has nothing to worry.} 26. Bxf4 Bf5) 26. f4 $2 {[%emt 0:00:00]} (26. Bxh6 $18 {[%csl Gh6][%cal Ra8f8]} g5 27. Bxg5) 26... Bd6 {[%emt 0:00:00]} 27. c4 {[%emt 0:00:00]} c5 {[%emt 0:00:00]} 28. Nd5 {[%emt 0:00:00]} Bd7 {[%emt 0:00:00]} 29. Nc3 {[%emt 0:13:06]} (29. Nb6 $1 $11 {was the only way to keep the balance.} Bc6 30. Rc8 Bxg2+ 31. Kg1) 29... Ra1+ {[%emt 0:00:00]} 30. Kf2 {[%emt 0:00:26] [#]} Bc6 $1 {[%emt 0:00:00]} 31. Rc8 {[%emt 0:00:10]} Bb7 {[%emt 0:00:00]} 32. a8=Q {[%emt 0:01:04]} Bxa8 {[%emt 0:00:00]} 33. g3 {[%emt 0:01:34]} Bb7 {[%emt 0:00:00]} 34. Rh8 {[%emt 0:00:14]} Kg7 {[%emt 0:00:00]} 35. Rd8 {[%emt 0:00:11]} Rh1 {[%emt 0:00:00]} (35... Bc6 $17 36. Ke2 Kf7) 36. h4 {[%emt 0:00:30]} (36. Nb5 $1 $11) 36... Rh2+ {[%emt 0:00:00]} 37. Ke1 {[%emt 0:00:12]} (37. Kf1 $17) 37... Ba6 {[%emt 0:00:00]} 38. Na4 $19 {[%emt 0:00:07]} Bxc4 {[%emt 0:00:00]} 39. Bxc5 {[%emt 0:00:15]} Bxc5 {[%emt 0:00:00]} 40. Nxc5 {[%emt 0:00:18]} Re2+ {[%emt 0:00:00]} 41. Kd1 {[%emt 0:00:18]} Re3 {[%emt 0:00:00]} 42. Rd4 {[%emt 0:00:00]} Bb3+ {[%emt 0:00:00]} 43. Kd2 {[%emt 0:00:00]} Rxg3 {[%emt 0:00:00]} 44. Rd7 {[%emt 0:00:00]} Kf7 {[%emt 0:00:00]} 45. Nd3 {[%emt 0:00:00]} g5 {[%emt 0:00:00]} 46. Rb7 {[%emt 0:00:00]} Bd5 {[%emt 0:00:00]} 47. Rb5 {[%emt 0:00:00]} e6 {[%emt 0:00:00]} 48. h5 {[%emt 0:00:00]} Kf6 {[%emt 0:00:00]} 49. Rb8 {[%emt 0:00:00]} Be4 {[%emt 0:00:00]} 50. fxg5+ {[%emt 0:00:00]} hxg5 {[%emt 0:00:00]} 51. Nf2 {[%emt 0:00:00]} Rg2 {[%emt 0:00:00]} 52. Ke3 {[%emt 0:00:00]} Bd5 {[%emt 0:00:00]} 53. Rg8 {[%emt 0:00:17]} f4+ {[%emt 0:00:00]} 54. Ke2 {[%emt 0:00:25]} Rh2 {[%emt 0:00:00]} 0-1

[Event "Oslo Chess Festival 2018"]
[Site "Oslo"]
[Date "2018.10.02"]
[Round "3"]
[White "Skaslien, Ingrid"]
[Black "Cherniaev, Alexander"]
[Result "0-1"]
[ECO "A85"]
[WhiteElo "1885"]
[BlackElo "2384"]
[Annotator "NA"]
[PlyCount "64"]
[EventDate "2018.09.30"]
[EventCountry "NOR"]
[SourceTitle "playchess.com"]
[Source "ChessBase"]
[SourceQuality "1"]
[TimeControl "90/30+30:0"]

{[%evp 8,46,22,17,27,5,14,-4,-6,3,2,-31,14,7,41,45,44,50,90,75,53,52,75,-39,7,22,16,-219,-166,-161,-188,-254,-195,-190,-179,-208,-158,-302,-288,-333,-294]} 1. d4 {[%emt 0:00:00]} e6 {[%emt 0:00:00]} 2. c4 {[%emt 0:00:00]} b6 {[%emt 0:00:00]} 3. Nc3 {[%emt 0:00:00]} Bb7 {[%emt 0:00:00]} 4. e3 {[%emt 0:00:00]} f5 {[%emt 0:00:00]} 5. Nf3 {[%emt 0:00:00] LiveBook: 21 Games} Nf6 {[%emt 0:00:00]} 6. Bd3 {[%emt 0:00:00]} g6 {[%emt 0:00:00]} 7. b3 {[%emt 0:00:00]} Bg7 {[%emt 0:00:00]} 8. O-O {[%emt 0:00:00]} O-O {[%emt 0:00:00]} 9. Re1 $146 {[%emt 0:00:00] A85: Dutch Defence: 2 c4 Nf6 3 Nc3} ({Predecessor:} 9. Qe2 c5 10. Ba3 d6 11. Rfd1 Qc8 12. Rac1 Re8 13. Bb1 e5 14. Nb5 Bf8 15. dxe5 dxe5 16. Nd6 Bxd6 17. Rxd6 {1-0 (24) Cwiek,L (2155)-Arcusa,M Condom 2003}) 9... Nc6 {[%emt 0:00:00]} 10. Ba3 {[%emt 0:00:00]} Ne7 {[%emt 0:00:00]} 11. e4 {[%emt 0:00:00]} fxe4 {[%emt 0:00:00]} 12. Nxe4 {[%emt 0:00:00]} Nh5 {[%emt 0:00:00]} 13. Neg5 {[%emt 0:00:00]} c5 {[%emt 0:00:00]} 14. Be4 {[%emt 0:00:00]} Bxe4 {[%emt 0:00:00]} 15. Rxe4 {[%emt 0:00:00]} (15. Nxe4 $14 Nf6 16. Nxf6+ Bxf6 17. Rb1) 15... h6 {[%emt 0:00:00]} 16. Nh3 $1 {[%emt 0:00:00]} Nc6 {[%emt 0:00:00]} 17. Qd2 $2 {[%emt 0:00:00] [#]} (17. Ne5 $11 {and White is okay.}) 17... Rxf3 $1 {[%emt 0:00:00]} 18. gxf3 {[%emt 0:00:00]} Nxd4 {[%emt 0:00:00]} 19. Rxd4 {[%emt 0:00:00]} (19. Kg2 $142) 19... cxd4 {[%emt 0:00:00]} 20. Re1 {[%emt 0:00:00]} Qf6 {[%emt 0:00:00]} 21. Kg2 {[%emt 0:00:00]} e5 {[%emt 0:00:00]} 22. Re4 {[%emt 0:00:00]} (22. f4 {was worth a try.} Nxf4+ 23. Nxf4 exf4 24. Qd3) 22... g5 {[%emt 0:00:00]} 23. Re1 {[%emt 0:00:00]} Qf5 $19 {[%emt 0:00:00]} 24. Qe2 {[%emt 0:00:00]} Rc8 {[%emt 0:02:53]} 25. Bd6 {[%emt 0:06:47]} Kf7 {[%emt 0:03:49]} 26. Qd2 {[%emt 0:03:18]} Kg6 {[%emt 0:01:30]} 27. Re4 {[%emt 0:01:46]} Re8 {[%emt 0:01:49]} 28. Qe2 {[%emt 0:01:41]} Re6 {[%emt 0:00:03]} 29. Bb4 {[%emt 0:00:30]} Nf6 {[%emt 0:00:39]} 30. Bd2 {[%emt 0:00:46]} Nxe4 {[%emt 0:01:10]} 31. fxe4 {[%emt 0:00:04]} Qf6 {[%emt 0:00:15]} 32. Qg4 {[%emt 0:00:58]} Kf7 {[%emt 0:01:42]} 0-1

[Event "Oslo Chess Festival 2018"]
[Site "Oslo"]
[Date "2018.10.03"]
[Round "5"]
[White "Van Zyl-Rudd, Jack"]
[Black "Dale, Gunnar Brandshaug"]
[Result "1-0"]
[ECO "E30"]
[WhiteElo "2265"]
[BlackElo "1771"]
[Annotator "NA"]
[PlyCount "51"]
[EventDate "2018.09.30"]
[EventCountry "NOR"]
[SourceTitle "playchess.com"]
[Source "ChessBase"]
[SourceQuality "1"]
[TimeControl "90/30+30:0"]

1. d4 {[%emt 0:00:00]} Nf6 {[%emt 0:00:00]} 2. c4 {[%emt 0:00:00]} e6 {[%emt 0:00:00]} 3. Nc3 {[%emt 0:00:00]} Bb4 {[%emt 0:00:00]} 4. Bg5 {[%emt 0:00:00]} c5 {[%emt 0:00:00]} 5. d5 {[%emt 0:00:00]} d6 {[%emt 0:00:00]} 6. e3 {[%emt 0:00:00]} Qa5 {[%emt 0:00:00]} 7. Bxf6 {[%emt 0:00:00]} gxf6 {[%emt 0:00:00]} 8. Nge2 {[%emt 0:00:00]} e5 {[%emt 0:00:00]} 9. a3 {[%emt 0:00:00]} Bxc3+ {[%emt 0:00:00]} 10. Nxc3 {[%emt 0:00:00]} O-O {[%emt 0:00:00]} 11. Bd3 {[%emt 0:00:00]} f5 {[%emt 0:00:00]} 12. Qh5 {[%emt 0:00:00]} e4 {[%emt 0:00:00]} 13. Bc2 {[%emt 0:00:00]} Qd8 {[%emt 0:00:00]} 14. f3 {[%emt 0:00:00]} exf3 {[%emt 0:00:00]} 15. gxf3 {[%emt 0:00:00]} Qf6 {[%emt 0:00:00]} 16. O-O-O {[%emt 0:00:00]} Kh8 {[%emt 0:00:00]} 17. Rhg1 {[%emt 0:00:00]} Na6 {[%emt 0:00:00]} 18. e4 {[%emt 0:00:00]} Bd7 {[%emt 0:00:00]} 19. exf5 {[%emt 0:00:00]} b5 {[%emt 0:00:00]} 20. Ne4 {[%emt 0:00:00]} Qxf5 {[%emt 0:00:00]} 21. Ng5 {[%emt 0:00:00]} Qf4+ {[%emt 0:00:00]} 22. Kb1 {[%emt 0:00:00]} Bf5 {[%emt 0:00:00]} 23. Nxh7 {[%emt 0:00:00]} Bxc2+ {[%emt 0:00:00]} 24. Kxc2 {[%emt 0:00:00]} Qxc4+ {[%emt 0:00:00]} 25. Kb1 {[%emt 0:00:00]} Qf4 {[%emt 0:00:00]} 26. Nxf8+ {[%emt 0:00:00]} 1-0

[Event "Oslo Chess Festival 2018"]
[Site "Oslo"]
[Date "2018.10.04"]
[Round "6"]
[White "Basso, Pier Luigi"]
[Black "Vijayalakshmi, Subbaraman"]
[Result "1-0"]
[ECO "E16"]
[WhiteElo "2530"]
[BlackElo "2359"]
[Annotator "ChessBase"]
[PlyCount "109"]
[EventDate "2018.09.30"]
[EventCountry "NOR"]
[SourceTitle "playchess.com"]
[Source "ChessBase"]
[SourceQuality "1"]
[TimeControl "90/30+30:0"]

1. d4 {[%emt 0:00:00]} Nf6 {[%emt 0:00:00]} 2. c4 {[%emt 0:00:00]} e6 {[%emt 0:00:00]} 3. Nf3 {[%emt 0:00:00]} b6 {[%emt 0:00:00]} 4. g3 {[%emt 0:00:00]} Bb7 {[%emt 0:00:00]} 5. Bg2 {[%emt 0:00:00]} Bb4+ {[%emt 0:00:00]} 6. Bd2 {[%emt 0:00:00]} Bxd2+ {[%emt 0:00:00]} 7. Qxd2 {[%emt 0:00:00]} O-O {[%emt 0:00:00]} 8. Nc3 {[%emt 0:00:00]} Ne4 {[%emt 0:00:00]} 9. Qc2 {[%emt 0:00:00]} Nxc3 {[%emt 0:00:00]} 10. Ng5 {[%emt 0:00:00]} Ne4 {[%emt 0:00:00]} 11. Bxe4 {[%emt 0:00:00]} Bxe4 {[%emt 0:00:00]} 12. Qxe4 {[%emt 0:00:00]} Qxg5 {[%emt 0:00:00]} 13. Qxa8 {[%emt 0:00:00]} Nc6 {[%emt 0:00:00]} 14. Qb7 {[%emt 0:00:00]} Qa5+ {[%emt 0:00:00]} 15. Kf1 {[%emt 0:00:00]} Nxd4 {[%emt 0:00:00]} 16. Kg2 {[%emt 0:00:00]} Qc5 {[%emt 0:00:00]} 17. Rhd1 {[%emt 0:00:00]} e5 {[%emt 0:00:00]} 18. e3 {[%emt 0:00:00]} Ne6 {[%emt 0:00:00]} 19. Rxd7 {[%emt 0:00:00]} Qxc4 {[%emt 0:00:00]} 20. Qd5 {[%emt 0:00:00]} Qg4 {[%emt 0:00:00]} 21. h3 {[%emt 0:00:00]} Qf5 {[%emt 0:00:00]} 22. g4 {[%emt 0:00:00]} Qf6 {[%emt 0:00:00]} 23. Qf3 {[%emt 0:00:00]} Qh4 {[%emt 0:00:00]} 24. Rad1 {[%emt 0:00:00]} e4 {[%emt 0:00:00]} 25. Qf5 {[%emt 0:00:00]} a5 {[%emt 0:00:00]} 26. R1d5 {[%emt 0:00:00]} g6 {[%emt 0:00:00]} 27. Qe5 {[%emt 0:00:00]} a4 {[%emt 0:00:00]} 28. Rd1 {[%emt 0:00:00]} h6 {[%emt 0:01:00]} 29. a3 {[%emt 0:00:00]} Nc5 {[%emt 0:05:17]} 30. R7d2 {[%emt 0:00:00]} Ne6 {[%emt 0:02:01]} 31. Rh1 {[%emt 0:00:00]} Nc5 {[%emt 0:02:10]} 32. Qxc7 {[%emt 0:00:00]} Qf6 {[%emt 0:00:20]} 33. Qf4 {[%emt 0:00:00]} Qxf4 {[%emt 0:00:52]} 34. exf4 {[%emt 0:00:00]} Nd3 {[%emt 0:00:44]} 35. Kg3 {[%emt 0:00:00]} Rc8 {[%emt 0:01:16]} 36. f3 {[%emt 0:00:00]} f5 {[%emt 0:01:24]} 37. fxe4 {[%emt 0:00:00]} fxe4 {[%emt 0:00:05]} 38. Re2 {[%emt 0:00:00]} Rc4 {[%emt 0:00:20]} 39. Rhh2 {[%emt 0:00:00]} b5 {[%emt 0:02:05]} 40. Rc2 {[%emt 0:00:00]} Rd4 {[%emt 0:00:19]} 41. Rc7 {[%emt 0:00:00]} Ne1 {[%emt 0:01:24]} 42. Re2 {[%emt 0:00:54]} Nf3 {[%emt 0:00:00]} 43. Kf2 {[%emt 0:00:00]} Nd2 {[%emt 0:00:00]} 44. Rb7 {[%emt 0:00:00]} Rd3 {[%emt 0:00:00]} 45. Re3 {[%emt 0:00:00]} Rd5 {[%emt 0:00:00]} 46. Ke2 {[%emt 0:00:00]} Kf8 {[%emt 0:00:00]} 47. h4 {[%emt 0:00:00]} Nc4 {[%emt 0:00:00]} 48. Rxe4 {[%emt 0:00:00]} Rd2+ {[%emt 0:00:00]} 49. Ke1 {[%emt 0:00:00]} Rd5 {[%emt 0:00:00]} 50. Re2 {[%emt 0:00:00]} h5 {[%emt 0:00:00]} 51. f5 {[%emt 0:00:00]} hxg4 {[%emt 0:00:00]} 52. fxg6 {[%emt 0:00:00]} Nd6 {[%emt 0:00:00]} 53. Rd7 {[%emt 0:00:00]} g3 {[%emt 0:00:00]} 54. g7+ {[%emt 0:00:00]} Kg8 {[%emt 0:00:00]} 55. Re8+ {[%emt 0:00:00]} 1-0

[Event "Oslo Chess Festival 2018"]
[Site "Oslo"]
[Date "2018.10.04"]
[Round "6"]
[White "Pakleza, Zbigniew"]
[Black "Stella, Andrea"]
[Result "1-0"]
[ECO "D40"]
[WhiteElo "2502"]
[BlackElo "2500"]
[Annotator "ChessBase"]
[PlyCount "88"]
[EventDate "2018.09.30"]
[EventCountry "NOR"]
[SourceTitle "playchess.com"]
[Source "ChessBase"]
[SourceQuality "1"]
[TimeControl "90/30+30:0"]

1. d4 {[%emt 0:00:00]} e6 {[%emt 0:00:00]} 2. c4 {[%emt 0:00:00]} Nf6 {[%emt 0:00:00]} 3. Nf3 {[%emt 0:00:00]} d5 {[%emt 0:00:00]} 4. Nc3 {[%emt 0:00:00]} c5 {[%emt 0:00:00]} 5. e3 {[%emt 0:00:00]} Nc6 {[%emt 0:00:00]} 6. a3 {[%emt 0:00:00]} dxc4 {[%emt 0:00:00]} 7. Bxc4 {[%emt 0:00:00]} a6 {[%emt 0:00:00]} 8. O-O {[%emt 0:00:00]} b5 {[%emt 0:00:00]} 9. Ba2 {[%emt 0:00:00]} Bb7 {[%emt 0:00:00]} 10. d5 {[%emt 0:00:00]} exd5 {[%emt 0:00:00]} 11. Nxd5 {[%emt 0:00:00]} c4 {[%emt 0:00:00]} 12. e4 {[%emt 0:00:00]} Nxe4 {[%emt 0:00:00]} 13. Bf4 {[%emt 0:00:00]} Ne5 {[%emt 0:00:00]} 14. Bxe5 {[%emt 0:00:00]} Qxd5 {[%emt 0:00:00]} 15. Qe2 {[%emt 0:00:00]} Be7 {[%emt 0:00:00]} 16. Rad1 {[%emt 0:00:00]} Qe6 {[%emt 0:00:00]} 17. Bb1 {[%emt 0:00:00]} f5 {[%emt 0:00:00]} 18. Bxg7 {[%emt 0:00:00]} Rg8 {[%emt 0:00:00]} 19. Nd4 {[%emt 0:00:00]} Qg6 {[%emt 0:00:00]} 20. f3 {[%emt 0:00:00]} Rxg7 {[%emt 0:00:00]} 21. fxe4 {[%emt 0:00:00]} O-O-O {[%emt 0:00:00]} 22. Nxf5 {[%emt 0:00:00]} Bc5+ {[%emt 0:00:00]} 23. Kh1 {[%emt 0:00:00]} Rgd7 {[%emt 0:00:00]} 24. Rxd7 {[%emt 0:00:00]} Rxd7 {[%emt 0:00:00]} 25. e5 {[%emt 0:00:00]} Qg5 {[%emt 0:00:00]} 26. Be4 {[%emt 0:00:00]} Rd2 {[%emt 0:00:00]} 27. Bxb7+ {[%emt 0:00:00]} Kxb7 {[%emt 0:00:00]} 28. Qe4+ {[%emt 0:00:00]} Kb6 {[%emt 0:00:00]} 29. h4 {[%emt 0:03:08]} Qg6 {[%emt 0:00:00]} 30. e6 {[%emt 0:03:15]} Rd4 {[%emt 0:03:07]} 31. Qf3 {[%emt 0:02:20]} Rd3 {[%emt 0:02:37]} 32. Qe2 {[%emt 0:00:01]} Qf6 {[%emt 0:08:41]} 33. b4 {[%emt 0:02:14]} Bd6 {[%emt 0:01:43]} 34. Qf2+ {[%emt 0:03:18]} Kc6 {[%emt 0:00:28]} 35. Qa7 {[%emt 0:00:26]} Qe5 {[%emt 0:00:47]} 36. Qxa6+ {[%emt 0:00:44]} Kc7 {[%emt 0:00:12]} 37. Nxd6 {[%emt 0:01:04]} Rh3+ {[%emt 0:00:49]} 38. gxh3 {[%emt 0:00:05]} Qd5+ {[%emt 0:00:02]} 39. Kg1 {[%emt 0:00:41]} Qd4+ {[%emt 0:00:04]} 40. Rf2 {[%emt 0:01:01]} Qa1+ {[%emt 0:00:07]} 41. Kg2 {[%emt 0:00:23]} Qg7+ {[%emt 0:00:04]} 42. Kf3 {[%emt 0:00:23]} Qf6+ {[%emt 0:00:35]} 43. Ke4 {[%emt 0:02:18]} Qxh4+ {[%emt 0:00:15]} 44. Rf4 {[%emt 0:00:00]} Qe1+ {[%emt 0:00:00]} 1-0

[Event "Oslo Chess Festival 2018"]
[Site "Oslo"]
[Date "2018.10.04"]
[Round "6"]
[White "Pavlovic, Milos"]
[Black "Ranaldi, Lucas"]
[Result "1/2-1/2"]
[ECO "A47"]
[WhiteElo "2481"]
[BlackElo "2335"]
[Annotator "ChessBase"]
[PlyCount "93"]
[EventDate "2018.09.30"]
[EventCountry "NOR"]
[SourceTitle "playchess.com"]
[Source "ChessBase"]
[SourceQuality "1"]
[TimeControl "90/30+30:0"]

1. d4 {[%emt 0:00:00]} Nf6 {[%emt 0:00:00]} 2. Nf3 {[%emt 0:00:00]} b6 {[%emt 0:00:00]} 3. Bf4 {[%emt 0:00:00]} Bb7 {[%emt 0:00:00]} 4. e3 {[%emt 0:00:00]} e6 {[%emt 0:00:00]} 5. Nbd2 {[%emt 0:00:00]} Be7 {[%emt 0:00:00]} 6. h3 {[%emt 0:00:00]} O-O {[%emt 0:00:00]} 7. Bd3 {[%emt 0:00:00]} c5 {[%emt 0:00:00]} 8. O-O {[%emt 0:00:00]} d6 {[%emt 0:00:00]} 9. c3 {[%emt 0:00:00]} Nbd7 {[%emt 0:00:00]} 10. Qe2 {[%emt 0:00:00]} cxd4 {[%emt 0:00:00]} 11. exd4 {[%emt 0:00:00]} a6 {[%emt 0:00:00]} 12. a4 {[%emt 0:00:00]} Re8 {[%emt 0:00:00]} 13. Bh2 {[%emt 0:00:00]} Bf8 {[%emt 0:00:00]} 14. Nc4 {[%emt 0:00:00]} Qb8 {[%emt 0:00:00]} 15. Ne3 {[%emt 0:00:00]} Qa7 {[%emt 0:00:00]} 16. Rfd1 {[%emt 0:00:00]} Bc6 {[%emt 0:00:00]} 17. Ne1 {[%emt 0:00:00]} Qb7 {[%emt 0:00:00]} 18. N1c2 {[%emt 0:00:00]} Be4 {[%emt 0:00:00]} 19. Bc4 {[%emt 0:00:00]} d5 {[%emt 0:00:00]} 20. Bb3 {[%emt 0:00:00]} Nb8 {[%emt 0:00:00]} 21. Nb4 {[%emt 0:00:00]} Nc6 {[%emt 0:00:00]} 22. Nxc6 {[%emt 0:00:00]} Qxc6 {[%emt 0:00:00]} 23. f3 {[%emt 0:00:00]} Bg6 {[%emt 0:00:00]} 24. c4 {[%emt 0:00:00]} dxc4 {[%emt 0:00:00]} 25. Nxc4 {[%emt 0:03:33]} Red8 {[%emt 0:00:00]} 26. Ne5 {[%emt 0:01:34]} Qb7 {[%emt 0:00:00]} 27. Rac1 {[%emt 0:01:21]} Nd5 {[%emt 0:03:39]} 28. h4 {[%emt 0:00:40]} Bd6 {[%emt 0:03:29]} 29. g4 {[%emt 0:00:25]} Bxe5 {[%emt 0:00:43]} 30. Bxe5 {[%emt 0:00:47]} h5 {[%emt 0:01:15]} 31. gxh5 {[%emt 0:03:14]} Bxh5 {[%emt 0:02:43]} 32. Qg2 {[%emt 0:00:01]} f6 {[%emt 0:01:12]} 33. Bxd5 {[%emt 0:03:44]} Qxd5 {[%emt 0:00:02]} 34. Bxf6 {[%emt 0:00:26]} Rd7 {[%emt 0:00:14]} 35. Rd3 {[%emt 0:01:28]} Rf8 {[%emt 0:00:54]} 36. Be5 {[%emt 0:00:04]} Bxf3 {[%emt 0:01:03]} 37. Qg5 {[%emt 0:00:37]} Rf5 {[%emt 0:02:56]} 38. Qg6 {[%emt 0:00:36]} Be4 {[%emt 0:00:40]} 39. Rg3 {[%emt 0:00:48]} Rf1+ {[%emt 0:00:14]} 40. Rxf1 {[%emt 0:00:01]} Bxg6 {[%emt 0:00:11]} 41. Rxg6 {[%emt 0:00:02]} Qe4 {[%emt 0:00:00]} 42. h5 {[%emt 0:00:00]} Qe3+ {[%emt 0:00:00]} 43. Kg2 {[%emt 0:00:00]} Qe2+ {[%emt 0:00:00]} 44. Rf2 {[%emt 0:00:00]} Qxh5 {[%emt 0:00:00]} 45. Rg3 {[%emt 0:00:00]} Rf7 {[%emt 0:00:00]} 46. Rc2 {[%emt 0:00:00]} Qh4 {[%emt 0:06:55]} 47. Kg1 {[%emt 0:00:01]} 1/2-1/2